fUST/lending_fUST_20251130
["ID","MTS","AMOUNT","RATE_DAILY","PERIOD"]
[395150963,1764484241050,-500.0,8.323e-05,2]
[395150965,1764484241061,-500.0,8.323e-05,2]
[395150968,1764484241073,-500.0,8.323e-05,2]
[395150970,1764484241084,-1709.71827766,8.324e-05,2]
[395150973,1764484241102,-11741.16139386,8.324e-05,2]
[395151131,1764484246292,-1502.95,8.324e-05,2]
[395151132,1764484246303,-7841.91032447,8.324e-05,2]
[395151134,1764484247633,567.70873379,8.241e-05,2]
[395151135,1764484254686,9432.30126621,7.729e-05,2]
[395151136,1764484254714,3312.10962159,7.729e-05,2]
[395151137,1764484270170,300.0,8.24e-05,2]
[395151138,1764484277904,226.03639773,8.24e-05,2]
[395151139,1764484287701,-300.0,8.323e-05,2]
[395151140,1764484287727,-196.49909177,8.323e-05,2]
[395151141,1764484289405,-303.50090823,8.323e-05,2]
[395151142,1764484289430,-107.17496917,8.323e-05,2]
[395151143,1764484291332,-302.10708453,8.323e-05,2]
[395151144,1764484293287,-90.7179463,8.323e-05,2]
[395151145,1764484293311,-62.60236609,8.323e-05,2]
[395151146,1764484293378,625.96392729,8.24e-05,2]
[395151147,1764484296997,-124.17385326,8.323e-05,2]
[395151148,1764484297019,-48.23590861,8.323e-05,2]
[395151149,1764484298327,-430.7429384,8.323e-05,2]
[395151150,1764484302941,184.60867399,8.158e-05,2]
[395151151,1764484303424,-21.02115299,8.323e-05,2]
[395151152,1764484303445,-405.35530604,8.323e-05,2]
[395151153,1764484303467,-93.98261264,8.323e-05,2]
[395151154,1764484306373,-398.6559954,8.323e-05,2]
[395151155,1764484308293,852.7142408,7.426e-05,2]
[395151156,1764484309914,-7.36139196,8.323e-05,2]
[395151157,1764484309940,-225.31875162,8.323e-05,2]
[395151158,1764484311487,-274.68124838,8.323e-05,2]
[395151159,1764484311508,-57.18332376,8.323e-05,2]
[395151160,1764484313920,-351.2864564,8.323e-05,2]
[395151161,1764484316332,974.99606256,8.24e-05,2]
[395151162,1764484316617,-91.53021984,8.323e-05,2]
[395151163,1764484316646,-211.13617398,8.323e-05,2]
[395151164,1764484318716,-288.86382602,8.323e-05,2]
[395151165,1764484318741,-11.13617398,8.323e-05,2]
[395151166,1764484320168,-402.09955651,8.323e-05,2]
[395151167,1764484320195,-156.46095011,8.323e-05,2]
[395151168,1764484322318,-343.53904989,8.323e-05,2]
[395151169,1764484322344,-508.26921852,8.323e-05,2]
[395151170,1764484322370,-146.99316986,8.323e-05,2]
[395151171,1764484344151,-282.6638121,8.322e-05,2]
[395151172,1764484346203,160.00099414,8.239e-05,2]
[395151173,1764484350368,-17.3361879,8.322e-05,2]
[395151175,1764484374975,1200.0,8.322e-05,2]
[395151176,1764484382662,300.0,8.322e-05,2]
[395151177,1764484385286,500.0,8.322e-05,2]
[395151178,1764484385334,500.0,8.322e-05,2]
[395151179,1764484385394,500.0,8.322e-05,2]
[395151180,1764484403512,500.0,8.322e-05,2]
[395151181,1764484403547,500.0,8.322e-05,2]
[395151182,1764484403585,500.0,8.322e-05,2]
[395151183,1764484403619,500.0,8.322e-05,2]
[395151184,1764484403662,500.0,8.322e-05,2]
[395151185,1764484403705,500.0,8.322e-05,2]
[395151186,1764484403762,500.0,8.322e-05,2]
[395151187,1764484403829,500.0,8.322e-05,2]
[395151188,1764484403886,500.0,8.322e-05,2]
[395151189,1764484403942,500.0,8.322e-05,2]
[395151190,1764484403994,500.0,8.322e-05,2]
[395151191,1764484404064,500.0,8.322e-05,2]
[395151192,1764484404122,500.0,8.322e-05,2]
[395151193,1764484404171,500.0,8.322e-05,2]
[395151194,1764484404218,0.01,8.322e-05,2]
[395151195,1764484404252,499.99,8.322e-05,2]
[395151196,1764484404301,500.0,8.322e-05,2]
[395151197,1764484404362,524.83667004,8.322e-05,2]
[395151198,1764484404394,-247.57233485,8.323e-05,2]
[395151199,1764484404444,500.0,8.322e-05,2]
[395151200,1764484404491,500.0,8.322e-05,2]
[395151201,1764484407257,-171.58522658,8.323e-05,2]
[395151202,1764484411768,-366.58840774,8.323e-05,2]
[395151203,1764484413222,152.025455,0.00019872,30]
[395151204,1764484413536,152.025455,0.00019804,30]
[395151205,1764484413741,-379.69304451,8.323e-05,2]
[395151206,1764484413848,152.025455,0.00019736,30]
[395151207,1764484414160,152.025455,0.00019668,30]
[395151208,1764484417482,-214.80385601,8.323e-05,2]
[395151209,1764484418960,-215.89553805,8.323e-05,2]
[395151210,1764484420502,-725.01254756,8.323e-05,2]
[395151211,1764484423630,-215.89553805,8.323e-05,2]
[395151212,1764484425825,-284.10446195,8.323e-05,2]
[395151213,1764484427306,500.0,8.322e-05,2]
[395151214,1764484427341,500.0,8.322e-05,2]
[395151215,1764484427387,500.0,8.322e-05,2]
[395151216,1764484427419,500.0,8.322e-05,2]
[395151217,1764484427456,500.0,8.322e-05,2]
[395151218,1764484427491,633.76528091,8.322e-05,2]
[395151219,1764484427524,500.0,8.322e-05,2]
[395151220,1764484427565,500.0,8.322e-05,2]
[395151221,1764484427600,500.0,8.322e-05,2]
[395151222,1764484427647,500.0,8.322e-05,2]
[395151223,1764484428472,-174.00637952,8.323e-05,2]
[395151224,1764484430644,-310.09808243,8.323e-05,2]
[395151225,1764484432229,-300.59927252,8.323e-05,2]
[395151226,1764484440324,-632.75012295,8.323e-05,2]
[395151227,1764484442432,300.0,8.322e-05,2]
[395151228,1764484443353,-438.31015411,8.323e-05,2]
[395151229,1764484445011,-175.67066949,8.323e-05,2]
[395151230,1764484447068,-480.55951501,8.323e-05,2]
[395151231,1764484447660,500.0,8.322e-05,2]
[395151232,1764484447712,500.0,8.322e-05,2]
[395151233,1764484450761,-457.70366049,8.323e-05,2]
[395151235,1764484452229,-482.02232861,8.323e-05,2]
[395151236,1764484454690,-300.0,8.323e-05,2]
[395151237,1764484457396,-165.43901368,8.323e-05,2]
[395151238,1764484463914,500.0,8.322e-05,2]
[395151239,1764484463968,222.41461606,8.322e-05,2]
[395151240,1764484467877,319.00343299,8.322e-05,2]
[395151241,1764484467906,180.99656701,8.322e-05,2]
[395151242,1764484467963,500.0,8.322e-05,2]
[395151243,1764484468010,184.2130875,8.322e-05,2]
[395151244,1764484468053,500.0,8.322e-05,2]
[395151245,1764484468098,500.0,8.322e-05,2]
[395151246,1764484468137,500.0,8.322e-05,2]
[395151247,1764484468184,500.0,8.322e-05,2]
[395151248,1764484474878,500.0,8.322e-05,2]
[395151249,1764484479356,6634.80034549,8.323e-05,2]
[395151250,1764484479380,10000.01,8.323e-05,2]
[395151251,1764484479403,10000.01,8.323e-05,2]
[395151252,1764484479426,10000.01,8.323e-05,2]
[395151253,1764484479451,10000.01,8.323e-05,2]
[395151254,1764484479474,10000.01,8.323e-05,2]
[395151255,1764484479497,10000.01,8.323e-05,2]
[395151256,1764484479521,6854.92859231,8.323e-05,2]
[395151259,1764484544682,10000.01,7.382e-05,2]
[395151260,1764484544708,10000.01,7.382e-05,2]
[395151261,1764484544732,10000.01,7.382e-05,2]
[395151263,1764484644167,-301.16359566,7.208e-05,2]
[395151267,1764484748399,909.50024161,7.136e-05,2]
[395151269,1764484771001,909.50024161,7.136e-05,2]
[395151271,1764484791770,-909.50024161,7.208e-05,2]
[395151272,1764484807293,-599.91711611,7.345e-05,2]
[395151273,1764484815093,212.0,7.272e-05,2]
[395151276,1764484824176,212.1316441,7.011e-05,2]
[395151277,1764484824359,-212.0,7.345e-05,2]
[395151278,1764484837736,240.91424007,7.307e-05,2]
[395151279,1764484839730,-1200.0,7.381e-05,2]
[395151280,1764484839763,-300.0,7.381e-05,2]
[395151281,1764484839797,-300.0,7.381e-05,2]
[395151282,1764484839830,-300.0,7.381e-05,2]
[395151283,1764484839867,-1200.0,7.381e-05,2]
[395151284,1764484839902,-300.0,7.381e-05,2]
[395151285,1764484861254,-1050.4166494,7.382e-05,2]
[395151286,1764484861695,-2100.8332988,7.382e-05,2]
[395151287,1764484861902,-4201.6665976,7.382e-05,2]
[395151288,1764484862138,-1596.6768048,7.382e-05,2]
[395151289,1764484875506,-243.20720629,7.384e-05,2]
[395151290,1764484899338,-6.79279371,7.384e-05,2]
[395151291,1764484899360,-211.56627796,7.751e-05,2]
[395151292,1764484901942,-157.18572837,7.751e-05,2]
[395151293,1764484906440,-219.16676745,7.674e-05,2]
[395151294,1764484907180,-219.16676745,7.751e-05,2]
[395151295,1764484907202,-116.30645441,8.118e-05,2]
[395151296,1764484909167,-183.69354559,8.118e-05,2]
[395151297,1764484909188,-73.09924812,8.119e-05,2]
[395151298,1764484910713,-500.0,8.119e-05,2]
[395151299,1764484913857,-368.61203452,8.038e-05,2]
[395151300,1764484916328,-556.17082852,8.038e-05,2]
[395151302,1764484928239,485.28620616,7.958e-05,2]
[395151303,1764484932091,4901.3233223,7.221e-05,2]
[395151306,1764484950216,1200.0,7.958e-05,2]
[395151308,1764484962182,152.025456,0.000196,30]
[395151309,1764484963679,152.025456,0.000192,30]
[395151310,1764484988988,-2282.11788884,8.038e-05,2]
[395151311,1764485001742,1200.0,8.037e-05,2]
[395151312,1764485015678,152.025456,0.0002,30]
[395151313,1764485016639,152.025456,0.0002,30]
[395151314,1764485022946,-1200.0,8.118e-05,2]
[395151315,1764485024899,471.0,8.037e-05,2]
[395151316,1764485025094,729.0,8.037e-05,2]
[395151317,1764485047798,2100.0,8.038e-05,2]
[395151318,1764485070479,354.61828945,8.038e-05,2]
[395151328,1764485103044,171.15,1e-05,2]
[395151329,1764485103323,171.15,1.8e-05,2]
[395151330,1764485104703,171.14,1e-05,2]
[395151331,1764485144288,-185.36532206,8.119e-05,2]
[395151332,1764485214753,289.79913138,8.1e-05,2]
[395151333,1764485217058,521.63843648,8.1e-05,2]
[395151334,1764485219084,927.35722041,8.1e-05,2]
[395151335,1764485221384,1448.99565688,8.1e-05,2]
[395151336,1764485223763,2086.55374591,8.1e-05,2]
[395151337,1764485226439,1757.60751949,8.1e-05,2]
[395151338,1764485226464,1082.423968,8.1e-05,2]
[395151339,1764485228903,3709.42888162,8.1e-05,2]
[395151342,1764485230995,4694.7459283,8.1e-05,2]
[395151343,1764485233108,513.41122208,8.1e-05,2]
[395151344,1764485233133,5282.57140546,8.1e-05,2]
[395151345,1764485235442,4717.43859454,8.1e-05,2]
[395151346,1764485235466,2295.70038478,8.1e-05,2]
[395151347,1764485236291,767.29110222,8.038e-05,2]
[395151348,1764485237532,6937.018513,8.1e-05,2]
[395151349,1764485237559,1400.85025567,8.1e-05,2]
[395151350,1764485241086,-895.61498502,8.119e-05,2]
[395151351,1764485244088,1420.47250523,8.038e-05,2]
[395151352,1764485251087,-1420.47250523,8.119e-05,2]
[395151353,1764485251108,-397.34724291,8.155e-05,2]
[395151354,1764485259316,189.50654667,8.074e-05,2]
[395151358,1764485297767,-189.50654667,7.993e-05,2]
[395151359,1764485297789,-143.64111533,8e-05,2]
[395151360,1764485301325,-76.35888467,8e-05,2]
[395151361,1764485301349,-117.66813186,8.074e-05,2]
[395151362,1764485305242,-71.83841481,8.074e-05,2]
[395151363,1764485305267,-189.50654667,8.155e-05,2]
[395151364,1764485305288,-136.18238126,8.191e-05,2]
[395151365,1764485307190,-434.95821368,8.191e-05,2]
[395151366,1764485310036,-628.85940506,8.191e-05,2]
[395151367,1764485310058,-300.0,8.191e-05,2]
[395151368,1764485310081,-299.20748088,8.192e-05,2]
[395151369,1764485310102,-409.35700972,8.192e-05,2]
[395151370,1764485310126,-59.16966321,8.192e-05,2]
[395151371,1764485311662,-440.83033679,8.192e-05,2]
[395151372,1764485311684,-393.14790668,8.192e-05,2]
[395151373,1764485311707,-232.66817436,8.192e-05,2]
[395151374,1764485313343,592.20213884,8.109e-05,2]
[395151375,1764485313375,-198.83640434,8.191e-05,2]
[395151376,1764485315113,-126.46921485,8.191e-05,2]
[395151377,1764485315136,-246.61421166,8.191e-05,2]
[395151378,1764485328302,771.92355999,8.109e-05,2]
[395151379,1764485352371,352.16187987,7.784e-05,2]
[395151380,1764485353106,-300.0,8.19e-05,2]
[395151381,1764485353128,-253.38578834,8.191e-05,2]
[395151382,1764485353150,-500.0,8.191e-05,2]
[395151383,1764485353174,-500.0,8.191e-05,2]
[395151384,1764485353197,-500.0,8.191e-05,2]
[395151385,1764485353218,-500.0,8.191e-05,2]
[395151386,1764485353240,-500.0,8.191e-05,2]
[395151387,1764485353261,-500.0,8.191e-05,2]
[395151388,1764485353284,-500.0,8.191e-05,2]
[395151389,1764485353303,-500.0,8.191e-05,2]
[395151390,1764485353323,-500.0,8.191e-05,2]
[395151391,1764485353344,-500.0,8.191e-05,2]
[395151392,1764485353364,-500.0,8.191e-05,2]
[395151393,1764485353386,-500.0,8.191e-05,2]
[395151394,1764485353407,-500.0,8.191e-05,2]
[395151395,1764485353428,-500.0,8.191e-05,2]
[395151396,1764485353450,-500.0,8.191e-05,2]
[395151397,1764485353469,-500.0,8.191e-05,2]
[395151398,1764485353491,-500.0,8.191e-05,2]
[395151399,1764485353512,-500.0,8.191e-05,2]
[395151400,1764485353533,-500.0,8.191e-05,2]
[395151401,1764485353556,-500.0,8.191e-05,2]
[395151402,1764485353579,-500.0,8.191e-05,2]
[395151403,1764485353601,-500.0,8.191e-05,2]
[395151404,1764485353624,-500.0,8.191e-05,2]
[395151405,1764485353647,-500.0,8.191e-05,2]
[395151406,1764485353667,-500.0,8.191e-05,2]
[395151407,1764485353689,-500.0,8.191e-05,2]
[395151408,1764485353711,-500.0,8.191e-05,2]
[395151409,1764485353733,-500.0,8.191e-05,2]
[395151410,1764485353754,-500.0,8.191e-05,2]
[395151411,1764485353775,-240.0822767,8.191e-05,2]
[395151412,1764485353796,-500.0,8.191e-05,2]
[395151413,1764485353818,-500.0,8.191e-05,2]
[395151414,1764485353839,-500.0,8.191e-05,2]
[395151415,1764485353864,-500.0,8.191e-05,2]
[395151416,1764485353896,-500.0,8.191e-05,2]
[395151417,1764485353926,-500.0,8.191e-05,2]
[395151418,1764485353957,-500.0,8.191e-05,2]
[395151419,1764485353988,-500.0,8.191e-05,2]
[395151420,1764485354020,-500.0,8.191e-05,2]
[395151421,1764485354050,-500.0,8.191e-05,2]
[395151422,1764485354079,-500.0,8.191e-05,2]
[395151423,1764485354107,-500.0,8.191e-05,2]
[395151424,1764485354133,-500.0,8.191e-05,2]
[395151425,1764485354161,-500.0,8.191e-05,2]
[395151426,1764485354191,-500.0,8.191e-05,2]
[395151427,1764485354218,-500.0,8.191e-05,2]
[395151428,1764485354248,-500.0,8.191e-05,2]
[395151429,1764485354272,-500.0,8.191e-05,2]
[395151430,1764485354299,-500.0,8.191e-05,2]
[395151431,1764485354327,-500.0,8.191e-05,2]
[395151432,1764485354351,-500.0,8.191e-05,2]
[395151433,1764485354378,-500.0,8.191e-05,2]
[395151434,1764485354402,-500.0,8.191e-05,2]
[395151435,1764485354430,-500.0,8.191e-05,2]
[395151436,1764485354456,-500.0,8.191e-05,2]
[395151437,1764485354481,-500.0,8.191e-05,2]
[395151438,1764485354510,-500.0,8.191e-05,2]
[395151439,1764485354537,-500.0,8.191e-05,2]
[395151440,1764485354564,-500.0,8.191e-05,2]
[395151441,1764485354591,-500.0,8.191e-05,2]
[395151442,1764485354617,-500.0,8.191e-05,2]
[395151443,1764485354644,-500.0,8.191e-05,2]
[395151444,1764485354671,-500.0,8.191e-05,2]
[395151445,1764485354699,-500.0,8.191e-05,2]
[395151446,1764485354726,-500.0,8.191e-05,2]
[395151447,1764485354752,-500.0,8.191e-05,2]
[395151448,1764485354778,-500.0,8.191e-05,2]
[395151449,1764485354804,-500.0,8.191e-05,2]
[395151450,1764485354829,-500.0,8.191e-05,2]
[395151451,1764485354856,-500.0,8.191e-05,2]
[395151452,1764485354884,-500.0,8.191e-05,2]
[395151453,1764485354910,-500.0,8.191e-05,2]
[395151454,1764485354937,-500.0,8.191e-05,2]
[395151455,1764485354964,-500.0,8.191e-05,2]
[395151456,1764485354990,-500.0,8.191e-05,2]
[395151457,1764485355021,-500.0,8.191e-05,2]
[395151458,1764485355049,-500.0,8.191e-05,2]
[395151459,1764485355080,-500.0,8.191e-05,2]
[395151460,1764485355107,-500.0,8.191e-05,2]
[395151461,1764485355136,-500.0,8.191e-05,2]
[395151462,1764485355165,-500.0,8.191e-05,2]
[395151463,1764485355191,-500.0,8.191e-05,2]
[395151464,1764485355218,-500.0,8.191e-05,2]
[395151465,1764485355245,-500.0,8.191e-05,2]
[395151466,1764485355271,-500.0,8.191e-05,2]
[395151467,1764485355300,-500.0,8.191e-05,2]
[395151468,1764485355327,-500.0,8.191e-05,2]
[395151469,1764485355354,-500.0,8.191e-05,2]
[395151470,1764485355382,-500.0,8.191e-05,2]
[395151471,1764485355411,-500.0,8.191e-05,2]
[395151472,1764485355439,-500.0,8.191e-05,2]
[395151473,1764485355467,-500.0,8.191e-05,2]
[395151474,1764485355494,-500.0,8.191e-05,2]
[395151475,1764485355519,-500.0,8.191e-05,2]
[395151476,1764485355542,-500.0,8.191e-05,2]
[395151477,1764485355564,-500.0,8.191e-05,2]
[395151478,1764485355586,-500.0,8.191e-05,2]
[395151479,1764485355918,-500.0,8.191e-05,2]
[395151480,1764485355944,-545.99886783,8.191e-05,2]
[395151481,1764485355966,-500.0,8.191e-05,2]
[395151482,1764485355988,-500.0,8.191e-05,2]
[395151483,1764485356014,-434.7623144,8.191e-05,2]
[395151484,1764485356210,633.89138376,7.784e-05,2]
[395151485,1764485357071,-65.2376856,8.191e-05,2]
[395151486,1764485357096,-500.0,8.191e-05,2]
[395151487,1764485357120,-500.0,8.191e-05,2]
[395151488,1764485357143,-633.53702238,8.191e-05,2]
[395151489,1764485357165,-500.0,8.191e-05,2]
[395151490,1764485357188,-500.0,8.191e-05,2]
[395151491,1764485357210,-268.05390859,8.191e-05,2]
[395151492,1764485357232,-500.0,8.191e-05,2]
[395151493,1764485357257,-500.0,8.191e-05,2]
[395151494,1764485357277,-500.0,8.191e-05,2]
[395151495,1764485357296,-288.25048735,8.191e-05,2]
[395151496,1764485357318,-500.0,8.191e-05,2]
[395151497,1764485357340,-500.0,8.191e-05,2]
[395151498,1764485357363,-500.0,8.191e-05,2]
[395151499,1764485357385,-500.0,8.191e-05,2]
[395151500,1764485357406,-250.00000001,8.191e-05,2]
[395151501,1764485357431,-500.0,8.191e-05,2]
[395151502,1764485357454,-500.0,8.191e-05,2]
[395151503,1764485357477,-500.0,8.191e-05,2]
[395151504,1764485357499,-369.52945122,8.191e-05,2]
[395151505,1764485357549,1126.91801557,7.784e-05,2]
[395151506,1764485358086,-130.47054878,8.191e-05,2]
[395151507,1764485358110,-500.0,8.191e-05,2]
[395151508,1764485358133,-176.80539086,8.191e-05,2]
[395151509,1764485358152,-300.0,8.192e-05,2]
[395151510,1764485358172,-1200.0,8.192e-05,2]
[395151511,1764485358193,-2535.56553503,8.194e-05,2]
[395151512,1764485358213,-3451.18642268,8.194e-05,2]
[395151513,1764485358234,-4507.67206228,8.194e-05,2]
[395151514,1764485358256,-5699.31743137,8.194e-05,2]
[395151515,1764485358276,-500.0,8.219e-05,2]
[395151516,1764485358300,-500.0,8.219e-05,2]
[395151517,1764485358321,-561.178172,8.219e-05,2]
[395151518,1764485358340,-151.0,8.22e-05,2]
[395151519,1764485358360,-151.69926731,8.22e-05,2]
[395151520,1764485358396,-151.23189372,8.22e-05,2]
[395151521,1764485358418,-151.0,8.22e-05,2]
[395151522,1764485358439,-151.47656527,8.22e-05,2]
[395151523,1764485358460,-500.0,8.221e-05,2]
[395151524,1764485358481,-185.25508141,8.221e-05,2]
[395151525,1764485358502,-1276.76,8.221e-05,2]
[395151526,1764485358523,-151.0,8.221e-05,2]
[395151527,1764485358546,-500.0,8.221e-05,2]
[395151529,1764485358568,-1709.0,8.221e-05,2]
[395151530,1764485358591,-151.0,8.221e-05,2]
[395151531,1764485358613,-151.0,8.221e-05,2]
[395151532,1764485358635,-500.0,8.221e-05,2]
[395151533,1764485358657,-500.0,8.221e-05,2]
[395151534,1764485358679,-500.0,8.221e-05,2]
[395151535,1764485358707,-21361.44814898,8.222e-05,2]
[395151536,1764485359427,1760.80939933,7.784e-05,2]
[395151537,1764485362037,-304.0603116,8.222e-05,2]
[395151538,1764485370685,-2573.46730043,8.222e-05,2]
[395151539,1764485370858,-10000.01,8.222e-05,2]
[395151540,1764485371000,-10000.01,8.222e-05,2]
[395151541,1764485371083,-47605.73265429,8.222e-05,2]
[395151542,1764485371219,-10000.01,8.222e-05,2]
[395151543,1764485371425,-10000.01,8.222e-05,2]
[395151544,1764485371596,-10000.01,8.222e-05,2]
[395151545,1764485371727,-10000.01,8.222e-05,2]
[395151546,1764485371851,-10000.01,8.222e-05,2]
[395151547,1764485371993,-527.16823851,8.14e-05,2]
[395151548,1764485372054,-8945.67352298,8.222e-05,2]
[395151549,1764485372104,-10000.01,8.222e-05,2]
[395151550,1764485373293,-63542.23050018,8.222e-05,2]
[395151551,1764485379748,434.95821368,8.14e-05,2]
[395151552,1764485395947,890.60728512,8.14e-05,2]
[395151553,1764485396802,500.0,8.191e-05,2]
[395151554,1764485418957,1937.0,8.139e-05,2]
[395151555,1764485426461,-218.0,8.221e-05,2]
[395151556,1764485426492,-300.0,8.221e-05,2]
[395151557,1764485426524,-219.0,8.221e-05,2]
[395151558,1764485426556,-1200.0,8.221e-05,2]
[395151559,1764485427605,-227.0,8.222e-05,2]
[395151560,1764485431536,-420.61565121,8.222e-05,2]
[395151596,1764485432555,-321.0,8.222e-05,2]
[395151597,1764485434440,500.0,8.221e-05,2]
[395151598,1764485434472,227.71393344,8.221e-05,2]
[395151599,1764485435216,592.8247204,8.221e-05,2]
[395151600,1764485435848,248.89803075,8.221e-05,2]
[395151601,1764485435880,198.6944986,8.221e-05,2]
[395151602,1764485435913,500.0,8.221e-05,2]
[395151603,1764485435952,500.0,8.221e-05,2]
[395151604,1764485435989,500.0,8.221e-05,2]
[395151605,1764485436052,500.0,8.221e-05,2]
[395151606,1764485436088,500.0,8.221e-05,2]
[395151607,1764485436129,388.35370223,8.221e-05,2]
[395151608,1764485436198,241.86726565,8.221e-05,2]
[395151609,1764485436232,500.0,8.221e-05,2]
[395151610,1764485436325,254.59988678,8.221e-05,2]
[395151611,1764485436388,473.05796215,8.221e-05,2]
[395151612,1764485436414,26.94203785,8.221e-05,2]
[395151613,1764485436505,500.0,8.221e-05,2]
[395151639,1764485438524,-5311.88638983,8.222e-05,2]
[395151640,1764485438535,-5745.74079194,8.222e-05,2]
[395151642,1764485438546,-3906.33572535,8.222e-05,2]
[395151648,1764485438636,-415.64417249,8.222e-05,2]
[395151821,1764485441201,-2e-08,8.222e-05,2]
[395151824,1764485441221,-24479.06018098,8.222e-05,2]
[395151871,1764485441775,905.07986517,8.14e-05,2]
[395151983,1764485443516,-8679.42259818,8.222e-05,2]
[395151986,1764485443527,-780.75750266,8.222e-05,2]
[395152002,1764485443678,-300.0,8.222e-05,2]
[395152018,1764485443802,-10000.01,8.222e-05,2]
[395152026,1764485443868,-10000.01,8.222e-05,2]
[395152040,1764485444000,-10000.01,8.222e-05,2]
[395152251,1764485446415,-4689.27203357,8.222e-05,2]
[395152268,1764485446596,-48.07702974,8.222e-05,2]
[395152417,1764485448000,-10000.01,8.222e-05,2]
[395152439,1764485448206,-10000.01,8.222e-05,2]
[395152462,1764485448432,-10000.01,8.222e-05,2]
[395152472,1764485448619,-10000.01,8.222e-05,2]
[395152473,1764485448852,-10000.01,8.222e-05,2]
[395152480,1764485457783,493.04217791,8.059e-05,2]
[395152481,1764485462349,151.89,1e-05,2]
[395152482,1764485465658,2245.13981014,8.059e-05,2]
[395152483,1764485469146,-2245.13981014,8.14e-05,2]
[395152484,1764485469174,-5958.91975573,8.222e-05,2]
[395152485,1764485469196,-300.0,8.318e-05,2]
[395152486,1764485469218,-321.24730345,8.319e-05,2]
[395152487,1764485469242,-504.48022154,8.319e-05,2]
[395152488,1764485469264,-231.28369723,8.319e-05,2]
[395152489,1764485469288,-80.89576632,8.319e-05,2]
[395152490,1764485470693,-98.03662975,8.319e-05,2]
[395152491,1764485470717,-401.96337025,8.319e-05,2]
[395152492,1764485472858,-98.03662975,8.319e-05,2]
[395152493,1764485472880,-96.19234219,8.319e-05,2]
[395152494,1764485476081,-591.86985012,8.236e-05,2]
[395152495,1764485477593,-258.208063,8.236e-05,2]
[395152496,1764485477776,-403.80765781,8.319e-05,2]
[395152497,1764485477805,-14.80817735,8.319e-05,2]
[395152498,1764485477855,7109.93801195,8.122e-05,2]
[395152499,1764485477888,10000.01,8.122e-05,2]
[395152500,1764485484797,-667.7496579,8.022e-05,2]
[395152501,1764485489542,8664.5106842,8.041e-05,2]
[395152502,1764485490852,-660.4480607,8.041e-05,2]
[395152503,1764485501452,-1335.4993158,7.961e-05,2]
[395152504,1764485529179,-218.68026489,7.881e-05,2]
[395152505,1764485531442,-287.88293602,7.881e-05,2]
[395152506,1764485531465,-212.11706398,7.921e-05,2]
[395152507,1764485534797,-300.0,7.921e-05,2]
[395152508,1764485537595,-68.0703958,7.921e-05,2]
[395152509,1764485537619,-231.9296042,7.96e-05,2]
[395152510,1764485539727,-68.0703958,7.96e-05,2]
[395152511,1764485539750,-231.9296042,7.961e-05,2]
[395152512,1764485541855,-362.82891341,7.961e-05,2]
[395152513,1764485544530,-298.39943011,7.961e-05,2]
[395152514,1764485551039,-206.78271788,7.961e-05,2]
[395152515,1764485553990,-10000.01,7.961e-05,2]
[395152516,1764485554142,-571.19781021,7.961e-05,2]
[395152517,1764485554758,-159.3997534,8.04e-05,2]
[395152518,1764485554779,-500.0,8.04e-05,2]
[395152519,1764485554804,-500.0,8.04e-05,2]
[395152520,1764485554826,-195.8562144,8.04e-05,2]
[395152521,1764485554847,-437.59634031,8.04e-05,2]
[395152522,1764485556152,-120.02046477,8.04e-05,2]
[395152523,1764485556180,-75.77178741,8.04e-05,2]
[395152524,1764485559421,-217.33618788,8.04e-05,2]
[395152525,1764485570275,-206.89202471,8.04e-05,2]
[395152526,1764485570305,-394.67299695,8.04e-05,2]
[395152527,1764485570336,-500.0,8.04e-05,2]
[395152528,1764485570367,-500.0,8.04e-05,2]
[395152529,1764485570400,-500.0,8.04e-05,2]
[395152530,1764485570429,-373.49014876,8.04e-05,2]
[395152531,1764485570459,-500.0,8.04e-05,2]
[395152532,1764485570490,-500.0,8.04e-05,2]
[395152533,1764485570522,-500.0,8.04e-05,2]
[395152534,1764485570551,-500.0,8.04e-05,2]
[395152535,1764485570582,-347.04606865,8.04e-05,2]
[395152536,1764485571083,-355.80752186,8.04e-05,2]
[395152537,1764485571122,-154.32045537,8.04e-05,2]
[395152538,1764485571155,-500.0,8.04e-05,2]